bitfinex/quotes_BTCUSD_20230108
["timestamp","ask_amount","ask_price","bid_price","bid_amount"]
[1673189024329,0.71292936,16958.0,16957.0,2.98453666]
[1673189024894,0.71292936,16958.0,16957.0,2.98464471]
[1673189025425,1.08062436,16958.0,16957.0,2.28453666]
[1673189025952,1.08062436,16958.0,16957.0,2.28464471]
[1673189027323,0.71292936,16958.0,16957.0,2.28464471]
[1673189027862,1.08062436,16958.0,16957.0,2.28464471]
[1673189029790,1.08062436,16958.0,16957.0,2.28453666]
[1673189030752,0.71292936,16958.0,16957.0,2.28453666]
[1673189030995,0.71292936,16958.0,16957.0,2.28473086]
[1673189031511,1.08062436,16958.0,16957.0,2.58473086]
[1673189031757,1.08062436,16958.0,16957.0,2.28473086]
[1673189032213,1.08062436,16958.0,16957.0,2.28453666]
[1673189032679,0.71292936,16958.0,16957.0,2.28453666]
[1673189033453,1.08062436,16958.0,16957.0,2.98453666]
[1673189033695,1.08062436,16958.0,16957.0,2.98473086]
[1673189033696,0.71292936,16958.0,16957.0,2.98473086]
[1673189035464,0.71292936,16958.0,16957.0,2.98463794]
[1673189038832,0.71292936,16958.0,16957.0,2.98444374]
[1673189039318,0.71292936,16958.0,16957.0,2.28444374]
[1673189040329,0.71292936,16958.0,16957.0,2.98444374]
[1673189041310,0.71292936,16958.0,16957.0,2.98619319]
[1673189041819,0.71292936,16958.0,16957.0,2.98444374]
[1673189042328,0.71292936,16958.0,16957.0,2.98619319]
[1673189043344,0.71292936,16958.0,16957.0,2.98444374]
[1673189043605,0.71292936,16958.0,16957.0,2.28444374]
[1673189044122,1.08062436,16958.0,16957.0,2.28444374]
[1673189044373,1.24417727,16958.0,16957.0,1.64131782]
[1673189044665,1.08062436,16958.0,16957.0,1.64131782]
[1673189044907,1.61187227,16958.0,16957.0,1.64131782]
[1673189045162,1.08062436,16958.0,16957.0,1.64131782]
[1673189045425,0.71292936,16958.0,16957.0,2.28444374]
[1673189046465,0.71292936,16958.0,16957.0,2.28453121]
[1673189046704,0.71292936,16958.0,16957.0,2.28444374]
[1673189047476,0.71292936,16958.0,16957.0,2.28611472]
[1673189052193,1.08062436,16958.0,16957.0,2.28611472]
[1673189052723,0.71292936,16958.0,16957.0,2.28611472]
[1673189053238,1.08062436,16958.0,16957.0,2.28611472]
[1673189053478,1.08062436,16958.0,16957.0,2.28469349]
[1673189053726,1.08062436,16958.0,16957.0,2.28444374]
[1673189053982,0.71292936,16958.0,16957.0,2.28444374]
[1673189054505,1.61187227,16958.0,16957.0,2.28444374]
[1673189054756,1.61187227,16958.0,16957.0,1.64131782]
[1673189055238,1.61187227,16958.0,16957.0,2.28444374]
[1673189055485,1.61187227,16958.0,16957.0,1.64131782]
[1673189055741,1.61187227,16958.0,16957.0,2.28444374]
[1673189056410,1.24417727,16958.0,16957.0,2.28444374]
[1673189056895,0.71292936,16958.0,16957.0,2.28444374]
[1673189058441,1.61187227,16958.0,16957.0,2.28444374]
[1673189059486,1.24417727,16958.0,16957.0,2.28444374]
[1673189059989,1.61187227,16958.0,16957.0,2.2843553]
[1673189061246,1.24417727,16958.0,16957.0,2.2843553]
[1673189062513,0.71292936,16958.0,16957.0,2.2843553]
[1673189062764,1.61187227,16958.0,16957.0,2.2843553]
[1673189066462,1.08062436,16958.0,16957.0,2.2843553]
[1673189066961,1.61187227,16958.0,16957.0,2.2843553]
[1673189067778,1.24417727,16958.0,16957.0,2.2843553]
[1673189068297,1.61187227,16958.0,16957.0,2.2843553]
[1673189069586,1.24417727,16958.0,16957.0,2.2843553]
[1673189069801,0.71292936,16958.0,16957.0,2.2843553]
[1673189070044,1.08062436,16958.0,16957.0,2.2843553]
[1673189070275,1.61187227,16958.0,16957.0,2.2843553]
[1673189071707,1.24417727,16958.0,16957.0,2.2843553]
[1673189072231,1.61187227,16958.0,16957.0,2.2843553]
[1673189074312,1.24417727,16958.0,16957.0,2.2843553]
[1673189075066,1.61187227,16958.0,16957.0,2.2843553]
[1673189076333,1.24417727,16958.0,16957.0,2.2843553]
[1673189076591,1.61187227,16958.0,16957.0,2.2843553]
[1673189077113,1.08062436,16958.0,16957.0,2.2843553]
[1673189077621,1.24417727,16958.0,16957.0,2.2843553]
[1673189077884,1.61187227,16958.0,16957.0,2.2843553]
[1673189078147,1.08062436,16958.0,16957.0,2.2843553]
[1673189078407,0.71292936,16958.0,16957.0,1.64122938]
[1673189079123,1.61187227,16958.0,16957.0,1.64122938]
[1673189082442,1.61187227,16958.0,16957.0,1.64114169]
[1673189101368,1.61187227,16958.0,16957.0,1.63525069]
[1673189102298,1.61187227,16958.0,16957.0,1.04552469]
[1673189102567,1.24417727,16958.0,16957.0,1.04552469]
[1673189103334,1.24417727,16958.0,16957.0,1.63021279]
[1673189103587,1.24417727,16958.0,16957.0,1.41374669]
[1673189104581,1.24417727,16958.0,16957.0,1.04552469]
[1673189106527,0.71292936,16958.0,16957.0,1.41374669]
[1673189106754,0.71292936,16958.0,16957.0,1.04552469]
[1673189116580,1.08062436,16958.0,16957.0,1.04552469]
[1673189117313,1.61187227,16958.0,16957.0,1.04552469]
[1673189117818,1.08062436,16958.0,16957.0,1.04552469]
[1673189118060,1.61187227,16958.0,16957.0,1.04552469]
[1673189118313,1.08062436,16958.0,16957.0,1.04552469]
[1673189118863,1.61187227,16958.0,16957.0,1.04552469]
[1673189125308,1.61187227,16958.0,16957.0,1.04541732]
[1673189127558,1.24417727,16958.0,16957.0,1.04541732]
[1673189128327,1.61187227,16958.0,16957.0,1.04541732]
[1673189131500,1.61175558,16958.0,16957.0,1.04541732]
[1673189137243,1.24406058,16958.0,16957.0,1.04541732]
[1673189144950,1.24406058,16958.0,16957.0,1.63514332]
[1673189145202,1.61175558,16958.0,16957.0,1.63514332]
[1673189146217,1.24406058,16958.0,16957.0,1.63514332]
[1673189147010,1.61175558,16958.0,16957.0,1.63514332]
[1673189149072,1.24406058,16958.0,16957.0,1.63514332]
[1673189149310,1.61175558,16958.0,16957.0,1.63514332]
[1673189149563,1.24406058,16958.0,16957.0,1.63514332]
[1673189149787,0.71281267,16958.0,16957.0,1.63514332]
[1673189152739,0.71281267,16958.0,16957.0,1.97884799]
[1673189153236,0.71281267,16958.0,16957.0,1.9807665]
[1673189153462,0.71281267,16958.0,16957.0,1.63504015]
[1673189163505,1.08050767,16958.0,16957.0,1.63504015]
[1673189166400,0.71281267,16958.0,16957.0,1.63504015]
[1673189166946,1.08050767,16958.0,16957.0,1.63504015]
[1673189167206,0.71281267,16958.0,16957.0,1.63504015]
[1673189167984,1.08050767,16958.0,16957.0,1.63504015]
[1673189168742,0.71281267,16958.0,16957.0,1.63504015]
[1673189169261,1.08050767,16958.0,16957.0,1.63504015]
[1673189170069,0.71281267,16958.0,16957.0,1.63504015]
[1673189170550,1.08050767,16958.0,16957.0,1.63504015]
[1673189171531,0.71281267,16958.0,16957.0,1.63504015]
[1673189172045,1.08050767,16958.0,16957.0,1.63504015]
[1673189175363,0.71281267,16958.0,16957.0,1.63504015]
[1673189177661,0.71281267,16958.0,16957.0,1.63492959]
[1673189181449,0.54588608,16958.0,16957.0,2.21935449]
[1673189181699,0.44257194,16958.0,16957.0,2.21935449]
[1673189181952,0.54588608,16958.0,16957.0,2.21935449]
[1673189182465,0.54588608,16958.0,16957.0,3.50908049]
[1673189182735,0.54588608,16958.0,16957.0,3.80908049]
[1673189183035,0.899888,16958.0,16957.0,3.80908049]
[1673189183521,0.899888,16958.0,16957.0,4.17730249]
[1673189184042,0.899888,16958.0,16957.0,3.80908049]
[1673189184950,0.54588608,16958.0,16957.0,3.80908049]
[1673189185974,0.54588608,16958.0,16957.0,3.50908049]
[1673189186232,0.89986547,16958.0,16957.0,3.80908049]
[1673189186501,0.89986568,16958.0,16957.0,3.80908049]
[1673189186751,0.54588608,16958.0,16957.0,3.50908049]
[1673189187005,0.89984607,16958.0,16957.0,3.80908049]
[1673189187267,0.89985547,16958.0,16957.0,3.80908049]
[1673189187754,0.54588608,16958.0,16957.0,3.80908049]
[1673189188257,0.54588608,16958.0,16957.0,3.50908049]
[1673189188485,0.54588608,16958.0,16957.0,3.80908049]
[1673189188997,0.54588608,16958.0,16957.0,2.91935449]
[1673189189241,0.54588608,16958.0,16957.0,2.33492959]
[1673189190220,0.54588608,16958.0,16957.0,1.63492959]
[1673189190978,0.54588608,16958.0,16957.0,2.33492959]
[1673189193582,0.54588608,16958.0,16957.0,1.74520359]
[1673189193840,0.54588608,16958.0,16957.0,2.38832951]
[1673189194094,0.54588608,16958.0,16957.0,3.27805551]
[1673189194326,0.54588608,16958.0,16957.0,3.64627751]
[1673189195095,0.89984608,16958.0,16957.0,3.05590829]
[1673189195318,0.54588608,16958.0,16957.0,3.05590829]
[1673189195793,0.54588608,16958.0,16957.0,2.99567723]
[1673189197336,0.54588608,16958.0,16957.0,3.29567723]
[1673189197582,0.89984155,16958.0,16957.0,3.88540323]
[1673189200079,0.89984155,16958.0,16957.0,3.8855043]
[1673189208033,0.79652741,16958.0,16957.0,4.2537263]
[1673189208993,1.0619564,16958.0,16957.0,4.2537263]
[1673189209238,1.0619564,16958.0,16957.0,3.8855043]
[1673189209239,0.79652741,16958.0,16957.0,3.8855043]
[1673189209496,0.88063899,16958.0,16957.0,3.8855043]
[1673189209746,0.79652741,16958.0,16957.0,3.8855043]
[1673189211235,0.79652741,16958.0,16957.0,4.2537263]
[1673189211489,1.06195556,16958.0,16957.0,4.2537263]
[1673189212906,1.06195556,16958.0,16957.0,3.8855043]
[1673189213169,0.79652741,16958.0,16957.0,3.8855043]
[1673189213429,1.06195819,16958.0,16957.0,3.8855043]
[1673189214130,0.79652741,16958.0,16957.0,3.8855043]
[1673189214694,1.06195823,16958.0,16957.0,3.8855043]
[1673189215198,1.06195823,16958.0,16957.0,4.2537263]
[1673189215437,0.61938629,16958.0,16957.0,4.2537263]
[1673189215656,1.06195823,16958.0,16957.0,4.2537263]
[1673189216139,0.79652741,16958.0,16957.0,4.2537263]
[1673189216622,0.79652741,16958.0,16957.0,3.8855043]
[1673189217016,0.88059881,16958.0,16957.0,3.8855043]
[1673189217491,0.79652741,16958.0,16957.0,3.8855043]
[1673189218004,0.88059801,16958.0,16957.0,4.2537263]
[1673189218263,0.79652741,16958.0,16957.0,4.2537263]
[1673189218508,0.88014772,16958.0,16957.0,3.88540323]
[1673189219028,0.52619225,16958.0,16957.0,3.88540323]
[1673189221053,0.52619225,16958.0,16957.0,2.99567723]
[1673189221307,0.52619225,16958.0,16957.0,2.9957783]
[1673189221545,0.52619225,16958.0,16957.0,2.99567723]
[1673189221797,0.52619225,16958.0,16957.0,2.99556717]
[1673189222299,0.52619225,16958.0,16957.0,2.99566824]
[1673189225629,0.64865562,16958.0,16957.0,2.99556717]
[1673189230715,1.0911236,16958.0,16957.0,2.99556717]
[1673189231474,0.52608829,16958.0,16957.0,2.99556717]
[1673189231991,0.52608829,16958.0,16957.0,3.29566824]
[1673189232487,0.52608829,16958.0,16957.0,2.65254232]
[1673189232739,0.52608829,16958.0,16957.0,1.95254232]
[1673189233496,0.88004859,16958.0,16957.0,4.53236658]
[1673189233747,0.88004859,16958.0,16957.0,4.90058858]
[1673189233748,0.79642828,16958.0,16957.0,4.90058858]
[1673189233996,1.0618957,16958.0,16957.0,4.90058858]
[1673189234665,0.61942772,16958.0,16957.0,4.90058858]
[1673189235120,0.61942772,16958.0,16957.0,5.66441458]
[1673189235121,0.44243189,16958.0,16957.0,5.66441458]
[1673189235353,0.17696447,16958.0,16957.0,5.95925458]
[1673189235601,0.17696447,16958.0,16957.0,6.36838154]
[1673189235851,0.17696447,16958.0,16957.0,5.92961747]
[1673189236647,0.79924966,16959.0,16957.0,5.92961747]
[1673189236925,0.44528936,16959.0,16958.0,0.98158482]
[1673189237177,0.44528936,16959.0,16958.0,3.38243882]
[1673189237709,0.44523872,16959.0,16958.0,3.38243882]
[1673189237713,0.79919902,16959.0,16958.0,3.38243882]
[1673189237966,0.44523872,16959.0,16958.0,4.05455395]
[1673189238252,0.44623872,16959.0,16958.0,4.05455395]
[1673189238506,0.44523872,16959.0,16958.0,4.42277595]
[1673189238765,0.44623872,16959.0,16958.0,4.56177595]
[1673189239801,0.1807713,16959.0,16958.0,4.56177595]
[1673189240323,0.44623872,16959.0,16958.0,4.56177595]
[1673189240590,0.1807713,16959.0,16958.0,4.56177595]
[1673189241102,0.00385747,16959.0,16958.0,4.90687595]
[1673189241893,0.00377012,16959.0,16958.0,4.90687595]
[1673189242168,0.18068395,16959.0,16958.0,4.90687595]
[1673189242435,0.00377012,16959.0,16958.0,4.73427595]
[1673189242716,0.00377012,16959.0,16958.0,5.14340291]
[1673189242973,0.00377012,16959.0,16958.0,4.73427595]
[1673189245838,0.00377012,16959.0,16958.0,4.97378132]
[1673189247115,0.00377012,16959.0,16958.0,4.27378132]
[1673189248113,0.00377012,16959.0,16958.0,4.97378132]
[1673189253238,0.00370352,16959.0,16958.0,4.97378132]
[1673189254019,0.00370352,16959.0,16958.0,4.30166619]
[1673189254277,0.00370352,16959.0,16958.0,4.97849859]
[1673189263091,0.00370352,16959.0,16958.0,5.15099859]
[1673189264884,0.00370352,16959.0,16958.0,4.45099859]
[1673189265977,0.00370352,16959.0,16958.0,5.15099859]
[1673189271740,0.00370352,16959.0,16958.0,4.45099859]
[1673189272754,0.00370352,16959.0,16958.0,5.15099859]
[1673189273275,0.1016912,16960.0,16959.0,1.30658003]
[1673189273510,0.1016912,16960.0,16959.0,4.25734169]
[1673189273775,0.1016912,16960.0,16959.0,4.96646865]
[1673189274024,0.1016912,16960.0,16959.0,5.25734169]
[1673189274532,0.36715862,16960.0,16959.0,5.25734169]
[1673189274780,0.36715862,16960.0,16959.0,5.55215169]
[1673189275819,0.36815862,16960.0,16959.0,5.32334169]
[1673189281276,0.36815862,16960.0,16959.0,4.62334169]
[1673189281790,0.72211892,16960.0,16959.0,4.62334169]
[1673189282054,0.72211892,16960.0,16959.0,5.32334169]
[1673189282303,0.26646742,16960.0,16959.0,5.32334169]
[1673189282566,0.62042772,16960.0,16959.0,5.32334169]
[1673189283600,0.62042772,16960.0,16959.0,4.95511969]
[1673189284368,0.62042772,16960.0,16959.0,5.32334169]
[1673189284895,0.62042772,16960.0,16959.0,4.95511969]
[1673189285172,0.62042772,16960.0,16959.0,5.32334169]
[1673189286639,0.62042772,16960.0,16959.0,4.95511969]
[1673189287377,0.62042772,16960.0,16959.0,5.32334169]
[1673189287864,0.62042772,16960.0,16959.0,4.95511969]
[1673189288140,0.62042772,16960.0,16959.0,5.32334169]
[1673189288922,0.4434422,16960.0,16959.0,5.61816169]
[1673189291220,0.4434422,16960.0,16959.0,5.32334169]
[1673189293008,0.26646742,16960.0,16959.0,5.32334169]
[1673189293264,0.62042772,16960.0,16959.0,5.32334169]
[1673189293539,0.79741285,16960.0,16959.0,4.62334169]
[1673189293801,0.62042772,16960.0,16959.0,4.62334169]
[1673189294532,0.62042772,16960.0,16959.0,5.32334169]
[1673189295820,0.62042772,16960.0,16959.0,5.56237998]
[1673189297327,0.79742472,16960.0,16959.0,5.56237998]
[1673189297585,0.44346442,16960.0,16959.0,5.56237998]
[1673189298109,0.177997,16960.0,16959.0,5.73906929]
[1673189299219,0.177997,16960.0,16959.0,5.56237998]
[1673189300163,0.44346442,16960.0,16959.0,5.56237998]
[1673189300664,0.177997,16960.0,16959.0,5.56237998]
[1673189301741,0.44346442,16960.0,16959.0,5.56237998]
[1673189302557,0.62042772,16960.0,16959.0,5.56229633]
[1673189302816,0.62042772,16960.0,16959.0,5.19407433]
[1673189303596,0.001,16960.0,16959.0,7.24941257]
[1673189303859,0.001,16960.0,16959.0,7.42661436]
[1673189304148,0.02207817,16961.0,16960.0,0.7]
[1673189304577,0.02207817,16961.0,16960.0,5.5427998]
[1673189304580,0.02207817,16961.0,16960.0,5.80791559]
[1673189304836,0.02207817,16961.0,16960.0,5.5427998]
[1673189305599,0.02207817,16961.0,16960.0,5.6827998]
[1673189305857,0.02207817,16961.0,16960.0,5.5427998]
[1673189306135,0.02207817,16961.0,16960.0,5.14846533]
[1673189306978,0.02207817,16961.0,16960.0,5.7424835]
[1673189307987,0.02207817,16961.0,16960.0,5.7518061]
[1673189308760,0.02207817,16961.0,16960.0,5.57515203]
[1673189309041,0.02207817,16961.0,16960.0,5.7518061]
[1673189309312,0.02207817,16961.0,16960.0,5.57515203]
[1673189309602,0.02207817,16961.0,16960.0,5.14846533]
[1673189309866,0.02207817,16961.0,16960.0,5.7964061]
[1673189310121,0.02207817,16961.0,16960.0,5.61975203]
[1673189313048,0.02207817,16961.0,16960.0,5.57965714]
[1673189313339,0.02207817,16961.0,16960.0,4.97181126]
[1673189313616,0.02207817,16961.0,16960.0,5.65859367]
[1673189315992,0.02207817,16961.0,16960.0,4.95859367]
[1673189316993,0.02207817,16961.0,16960.0,5.65859367]
[1673189320526,0.02207817,16961.0,16960.0,5.48599367]
[1673189323209,0.02207817,16961.0,16960.0,5.95488367]
[1673189327200,0.02207817,16961.0,16960.0,5.95489367]
[1673189327721,0.02207817,16961.0,16960.0,5.95490367]
[1673189328000,0.02207817,16961.0,16960.0,5.30453907]
[1673189328251,0.02207817,16961.0,16960.0,4.63631707]
[1673189329791,0.02207817,16961.0,16960.0,4.93631707]
[1673189331600,0.02207817,16961.0,16960.0,4.93677167]
[1673189333616,0.02207817,16961.0,16960.0,5.30499367]
[1673189335947,0.02207817,16961.0,16960.0,4.93677167]
[1673189336869,0.02207817,16961.0,16960.0,5.30499367]
[1673189337381,0.02207817,16961.0,16960.0,4.93677167]
[1673189340523,0.02207817,16961.0,16960.0,5.30499367]
[1673189341539,0.02207817,16961.0,16960.0,5.30115967]
[1673189342774,0.02207817,16961.0,16960.0,4.93293767]
[1673189343015,0.02207817,16961.0,16960.0,4.23293767]
[1673189343995,0.02207817,16961.0,16960.0,4.93293767]
[1673189344236,0.02207817,16961.0,16960.0,5.30115967]
[1673189344968,0.19903026,16961.0,16960.0,4.93248307]
[1673189347004,0.46449768,16961.0,16960.0,4.93248307]
[1673189348004,0.19903026,16961.0,16960.0,4.93248307]
[1673189348511,0.19903026,16961.0,16960.0,4.93293767]
[1673189351523,0.46449768,16961.0,16960.0,4.93293767]
[1673189355674,0.19903026,16961.0,16960.0,4.93293767]
[1673189355996,0.19903026,16961.0,16960.0,4.29226901]
[1673189356186,0.46449768,16961.0,16960.0,4.93293767]
[1673189356451,0.46449768,16961.0,16960.0,4.93248307]
[1673189356718,0.64150589,16961.0,16960.0,4.93248307]
[1673189356973,0.81832063,16961.0,16960.0,4.93248307]
[1673189357266,0.46436033,16961.0,16960.0,4.93248307]
[1673189357998,0.81832063,16961.0,16960.0,4.93248307]
[1673189358788,0.64150589,16961.0,16960.0,4.93248307]
[1673189359307,0.64150589,16961.0,16960.0,2.71541]
[1673189359308,1.7589571,16961.0,16960.0,2.71541]
[1673189361625,1.7589571,16961.0,16960.0,2.71592187]
[1673189361913,1.7589571,16961.0,16960.0,2.71541]
[1673189362490,1.7589571,16961.0,16960.0,2.71592187]
[1673189362491,1.68098175,16961.0,16960.0,2.71592187]
[1673189362749,1.68098175,16961.0,16960.0,3.01541]
[1673189363404,1.94613364,16961.0,16960.0,3.01541]
[1673189363664,1.50366566,16961.0,16960.0,3.01541]
[1673189364252,1.50366566,16961.0,16960.0,2.71541]
[1673189364516,1.94613364,16961.0,16960.0,2.71686228]
[1673189364774,1.68098175,16961.0,16960.0,2.71686228]
[1673189365036,1.94616617,16961.0,16960.0,3.01686228]
[1673189365292,1.13600319,16961.0,16960.0,3.01686228]
[1673189365551,1.50369819,16961.0,16960.0,3.65753094]
[1673189365811,1.13600319,16961.0,16960.0,3.01686228]
[1673189366079,1.50369819,16961.0,16960.0,3.01686228]
[1673189366328,1.13600319,16961.0,16960.0,3.65753094]
[1673189369364,0.64122289,16961.0,16960.0,3.65753094]
[1673189369633,0.46405557,16961.0,16960.0,4.92438692]
[1673189370403,0.19887115,16961.0,16960.0,4.92438692]
[1673189370937,0.46405557,16961.0,16960.0,4.92438692]
[1673189371213,0.19887115,16961.0,16960.0,4.92438692]
[1673189372773,0.46405557,16961.0,16960.0,4.92291856]
[1673189373282,0.19887115,16961.0,16960.0,4.92291856]
[1673189373545,0.02207817,16961.0,16960.0,5.58595056]
[1673189378811,0.02207817,16961.0,16960.0,5.29114056]
[1673189380586,0.19887115,16961.0,16960.0,5.29114056]
[1673189381032,0.19887115,16961.0,16960.0,4.59114056]
[1673189381276,0.19887115,16961.0,16960.0,4.22291856]
[1673189382091,0.19887115,16961.0,16960.0,4.92291856]
[1673189382338,0.02207817,16961.0,16960.0,5.29114056]
[1673189383302,0.19887115,16961.0,16960.0,5.29114056]
[1673189383545,0.02207817,16961.0,16960.0,5.29114056]
[1673189384825,0.19887115,16961.0,16960.0,4.92291856]
[1673189386731,0.19887115,16961.0,16960.0,5.29114056]
[1673189387234,0.19887115,16961.0,16960.0,4.92291856]
[1673189388027,0.19887115,16961.0,16960.0,4.59114056]
[1673189388236,0.19887115,16961.0,16960.0,4.22291856]
[1673189388994,0.19887115,16961.0,16960.0,4.92291856]
[1673189389259,0.19887115,16961.0,16960.0,5.29114056]
[1673189391077,0.02207817,16961.0,16960.0,5.29114056]
[1673189391603,0.02201704,16961.0,16960.0,5.29114056]
[1673189392659,0.02201704,16961.0,16960.0,5.46779463]
[1673189393203,0.02201704,16961.0,16960.0,5.64189463]
[1673189396174,0.02201704,16961.0,16960.0,5.93667463]
[1673189396419,0.02201704,16961.0,16960.0,5.93668463]
[1673189397732,0.02201704,16961.0,16960.0,5.76003056]
[1673189398378,0.02201704,16961.0,16960.0,5.93668463]
[1673189400285,0.00498229,16962.0,16961.0,0.7]
[1673189400555,0.00498229,16962.0,16961.0,5.02463172]
[1673189402138,0.18729054,16963.0,16962.0,1.33699612]
[1673189402418,0.18729054,16963.0,16962.0,5.11454578]
[1673189402929,0.18729054,16963.0,16962.0,4.74632378]
[1673189403156,0.18729054,16963.0,16962.0,5.11461937]
[1673189403458,0.18729054,16963.0,16962.0,4.74639737]
[1673189404780,0.18729054,16963.0,16962.0,5.11461937]
[1673189405309,0.18729054,16963.0,16962.0,5.24461937]
[1673189405839,0.18729054,16963.0,16962.0,4.87639737]
[1673189406366,0.18729054,16963.0,16962.0,4.54461937]
[1673189406935,0.18729054,16963.0,16962.0,4.53961937]
[1673189407159,0.18729054,16963.0,16962.0,5.23961937]
[1673189407952,0.18729054,16963.0,16962.0,4.87139737]
[1673189409023,0.18729054,16963.0,16962.0,5.16615737]
[1673189409281,0.18729054,16963.0,16962.0,4.23072871]
[1673189409533,0.18729054,16963.0,16962.0,5.23961937]
[1673189410330,0.17679298,16963.0,16962.0,5.23961937]
[1673189411116,0.17679298,16963.0,16962.0,4.87139737]
[1673189412390,0.17679298,16963.0,16962.0,5.23961937]
[1673189413152,0.47172011,16964.0,16962.0,4.53961937]
[1673189413413,0.47172011,16964.0,16963.0,1.30889066]
[1673189413687,0.47172011,16964.0,16963.0,2.70922266]
[1673189413929,0.47073837,16964.0,16963.0,2.70922266]
[1673189414226,0.47073837,16964.0,16963.0,3.40922266]
[1673189414968,0.47073837,16964.0,16963.0,3.46522266]
[1673189416019,0.82469867,16964.0,16963.0,3.46522266]
[1673189416284,0.47073837,16964.0,16963.0,3.46522266]
[1673189420280,0.47073837,16964.0,16963.0,2.76522266]
[1673189421298,0.47073837,16964.0,16963.0,3.46522266]
[1673189423892,0.31573837,16964.0,16963.0,3.46328656]
[1673189424643,0.31573837,16964.0,16963.0,4.07411948]
[1673189426671,0.66969331,16964.0,16963.0,4.07411948]
[1673189427199,0.66969329,16964.0,16963.0,4.07411948]
[1673189427712,0.49290569,16964.0,16963.0,4.07411948]
[1673189428475,0.66972087,16964.0,16963.0,4.07411948]
[1673189428727,0.49290569,16964.0,16963.0,4.07411948]
[1673189431368,0.79642828,16964.0,16963.0,4.07411948]
[1673189431640,0.79642828,16964.0,16963.0,3.37411948]
[1673189432650,0.79642828,16964.0,16963.0,4.07411948]
[1673189432906,0.85909874,16964.0,16963.0,3.43538692]
[1673189433169,0.85909859,16964.0,16963.0,4.07411948]
[1673189434739,0.85909859,16964.0,16963.0,3.43538692]
[1673189434979,0.85909859,16964.0,16963.0,4.07411948]
[1673189436883,0.79642828,16964.0,16963.0,4.07411948]
[1673189438080,0.85927384,16964.0,16963.0,3.43538692]
[1673189438370,0.85927384,16964.0,16963.0,4.07411948]
[1673189438683,0.85927384,16964.0,16963.0,2.73538692]
[1673189438887,1.22696884,16964.0,16963.0,3.37411948]
[1673189439141,0.85927384,16964.0,16963.0,3.37411948]
[1673189439427,0.50531354,16964.0,16963.0,3.37411948]
[1673189439684,0.50531354,16964.0,16963.0,3.43538692]
[1673189439982,0.50531354,16964.0,16963.0,4.07411948]
[1673189443497,0.85919439,16964.0,16963.0,4.07411948]
[1673189445576,0.85919439,16964.0,16963.0,3.37411948]
[1673189446306,0.85919439,16964.0,16963.0,3.37403311]
[1673189446812,0.85919439,16964.0,16963.0,4.07403311]
[1673189447322,0.8592132,16964.0,16963.0,4.07403311]
[1673189447581,0.50531354,16964.0,16963.0,4.07403311]
[1673189448071,0.8592139,16964.0,16963.0,4.07403311]
[1673189448330,0.50531354,16964.0,16963.0,4.07403311]
[1673189448840,0.50531354,16964.0,16963.0,1.935036]
[1673189449088,0.50531354,16964.0,16963.0,1.345518]
[1673189449089,1.4066324,16964.0,16963.0,1.345518]
[1673189449342,1.93788031,16964.0,16963.0,1.345518]
[1673189450589,1.4066324,16964.0,16963.0,1.345518]
[1673189451373,1.1868824,16964.0,16963.0,1.345518]
[1673189452397,1.71813031,16964.0,16963.0,1.345518]
[1673189452703,1.1868824,16964.0,16963.0,0.756]
[1673189453167,1.71813031,16964.0,16963.0,0.756]
[1673189453675,1.1868824,16964.0,16963.0,0.756]
[1673189465509,1.1868824,16964.0,16963.0,0.056]
[1673189465734,1.71813031,16964.0,16963.0,0.056]
[1673189468602,1.71813031,16964.0,16963.0,0.05592337]
[1673189475481,1.65743031,16964.0,16963.0,0.05592337]
[1673189476936,1.28973531,16964.0,16963.0,0.05592337]
[1673189477457,1.11633531,16964.0,16963.0,0.05592337]
[1673189483257,1.48403031,16964.0,16963.0,0.05592337]
[1673189488608,0.9527824,16964.0,16963.0,0.05592337]
[1673189490157,0.9527824,16964.0,16963.0,0.05584494]
[1673189502841,0.9527824,16964.0,16963.0,0.30029879]
[1673189506933,1.55067278,16964.0,16963.0,0.30029879]
[1673189507761,0.9527824,16964.0,16963.0,0.30029879]
[1673189511843,0.9527824,16964.0,16963.0,0.30079233]
[1673189512586,0.9527824,16964.0,16963.0,0.30029879]
[1673189512860,0.9527824,16964.0,16963.0,0.30079233]
[1673189513088,0.9527824,16964.0,16963.0,0.30029879]
[1673189514382,0.9527824,16964.0,16963.0,0.30021737]
[1673189517766,0.5850874,16964.0,16963.0,0.30021737]
[1673189518030,0.9527824,16964.0,16963.0,0.30021737]
[1673189522836,1.5422654,16964.0,16963.0,0.30021737]
[1673189523096,2.14015578,16964.0,16963.0,0.30021737]
[1673189525308,2.14005488,16964.0,16963.0,0.30021737]
[1673189526672,2.14005488,16964.0,16963.0,0.39385434]
[1673189529332,2.14005488,16964.0,16963.0,0.30021737]
[1673189540072,1.5421645,16964.0,16963.0,0.30021737]
[1673189542112,1.1744695,16964.0,16963.0,0.30021737]
[1673189543830,1.5421645,16964.0,16963.0,0.30021737]
[1673189547312,1.1744695,16964.0,16963.0,0.30021737]
[1673189547589,1.1744695,16964.0,16963.0,0.44711683]
[1673189549865,1.5421645,16964.0,16963.0,0.44711683]
[1673189550134,1.5421645,16964.0,16963.0,0.30021737]
[1673189550375,1.5421645,16964.0,16963.0,0.30015225]
[1673189551631,0.9526815,16964.0,16963.0,0.30015225]
[1673189552115,0.5849865,16964.0,16963.0,0.30015225]
[1673189552418,0.9526815,16964.0,16963.0,0.30015225]
[1673189557414,0.5849865,16964.0,16963.0,0.30015225]
[1673189557979,0.9526815,16964.0,16963.0,0.30015225]
[1673189561016,0.83347316,16964.0,16963.0,0.30015225]
[1673189561272,0.83347316,16964.0,16963.0,1.1470452]
[1673189561540,0.46577816,16964.0,16963.0,1.1470452]
[1673189565924,0.46577816,16964.0,16963.0,1.00015225]
[1673189567248,0.46577816,16964.0,16963.0,1.63430049]
[1673189568330,0.46577816,16964.0,16963.0,1.00015225]
[1673189568823,0.46577816,16964.0,16963.0,1.63430049]
[1673189569326,0.46577816,16964.0,16963.0,1.00015225]
[1673189569650,0.46577816,16964.0,16963.0,1.85099303]
[1673189570894,0.53091496,16964.0,16963.0,1.85099303]
[1673189571131,0.53091496,16964.0,16963.0,2.21921503]
[1673189571401,0.53091496,16964.0,16963.0,1.85099303]
[1673189571892,0.41170646,16964.0,16963.0,1.85099303]
[1673189573176,0.41170646,16964.0,16963.0,1.85148657]
[1673189574064,0.41170646,16964.0,16963.0,1.85099303]
[1673189575346,0.41170646,16964.0,16963.0,1.84901931]
[1673189576848,0.41170646,16964.0,16963.0,2.54901931]
[1673189577335,0.41170646,16964.0,16963.0,2.33232677]
[1673189579267,0.41170646,16964.0,16963.0,1.63232677]
[1673189581548,0.77940146,16964.0,16963.0,1.63232677]
[1673189582905,0.41170646,16964.0,16963.0,1.63232677]
[1673189584358,0.77940146,16964.0,16963.0,1.63232677]
[1673189584603,0.41170646,16964.0,16963.0,1.63232677]
[1673189584845,0.77940146,16964.0,16963.0,1.63232677]
[1673189585321,0.41170646,16964.0,16963.0,1.63232677]
[1673189585550,0.77940146,16964.0,16963.0,1.63232677]
[1673189585811,0.41170646,16964.0,16963.0,1.00015225]
[1673189586066,0.77940146,16964.0,16963.0,1.63232677]
[1673189586543,0.41170646,16964.0,16963.0,1.63232677]